fUST/lending_fUST_20250912
["ID","MTS","AMOUNT","RATE_DAILY","PERIOD"]
[384998353,1757641851041,-597.41,0.00019564,2]
[384998355,1757641851051,-7142.53,0.00019564,2]
[384998357,1757641851060,-480.0,0.00019565,2]
[384998359,1757641851069,-829.62,0.00019565,2]
[384998361,1757641851078,-768.51,0.00019565,2]
[384998363,1757641851087,-624.59,0.00019565,2]
[384998365,1757641851097,-480.0,0.00019565,2]
[384998366,1757641851106,-415.16689195,0.00019565,2]
[384998368,1757641851115,-480.0,0.00019588,2]
[384998370,1757641851124,-3000.0,0.00019616,2]
[384998372,1757641851134,-225.50750916,0.00019726,2]
[384998374,1757641851143,-186.2790062,0.00019726,2]
[384998376,1757641851152,-1091.99043769,0.00019769,2]
[384998378,1757641851161,-151.0,0.000198,2]
[384998380,1757641851171,-1576.27,0.00019838,2]
[384998381,1757641851180,-933.28,0.00019838,2]
[384998382,1757641851189,-756.37,0.00019838,2]
[384998383,1757641851199,-1260.59,0.00019838,2]
[384998384,1757641851208,-831.37,0.00019838,2]
[384998385,1757641851217,-1013.41,0.00019838,2]
[384998386,1757641851226,-1232.83,0.00019838,2]
[384998387,1757641851235,-2693.59,0.00019838,2]
[384998388,1757641851244,-2811.94,0.00019838,2]
[384998389,1757641851253,-499.29,0.00019838,2]
[384998390,1757641851262,-597.41,0.00019838,2]
[384998391,1757641851271,-7142.53,0.00019838,2]
[384998392,1757641851280,-480.0,0.00019839,2]
[384998393,1757641851289,-829.62,0.00019839,2]
[384998394,1757641851298,-768.51,0.00019839,2]
[384998395,1757641851307,-624.59,0.00019839,2]
[384998396,1757641851316,-245.2,0.00019839,2]
[384998397,1757641851325,-224.55918648,0.00019862,2]
[384998398,1757641851334,-1500.0,0.00019868,2]
[384998399,1757641851343,-503.03720279,0.00019868,2]
[384998400,1757641851352,-151.0,0.000199,2]
[384998401,1757641851361,-152.705221,0.000199,2]
[384998402,1757641851370,-10277.072352,0.000199,2]
[384998403,1757641851379,-960.0,0.00019963,2]
[384998404,1757641851388,-8103.35076786,0.0002,2]
[384998405,1757641851397,-2606.24031177,0.0002,2]
[384998406,1757641851406,-258.66458794,0.0002,2]
[384998407,1757641851415,-201.0,0.0002,21]
[384998408,1757641851424,-3646.66242187,0.0002,20]
[384998409,1757641851433,-173.862,0.0002,2]
[384998410,1757641851442,-305.25795952,0.0002,2]
[384998411,1757641851451,-208.0,0.0002002,2]
[384998412,1757641851460,-160.0,0.0002003,4]
[384998413,1757641851469,-1576.48455782,0.00020112,2]
[384998414,1757641851478,-933.36689006,0.00020112,2]
[384998415,1757641851487,-756.43327889,0.00020112,2]
[384998416,1757641851496,-1260.79741159,0.00020112,2]
[384998418,1757641851505,-831.46965914,0.00020112,2]
[384998419,1757641851514,-1013.63749488,0.00020112,2]
[384998421,1757641851523,-1232.93687248,0.00020112,2]
[384998423,1757641851532,-2693.6867093,0.00020112,2]
[384998425,1757641851542,-2812.12751204,0.00020112,2]
[384998427,1757641851552,-499.33815192,0.00020112,2]
[384998429,1757641851561,-597.4878067,0.00020112,2]
[384998431,1757641851570,-7142.75650594,0.00020112,2]
[384998433,1757641851579,-324.03,0.00020113,2]
[384998435,1757641851588,-829.69159119,0.00020113,2]
[384998437,1757641851597,-768.52673615,0.00020113,2]
[384998439,1757641851606,-624.65783093,0.00020113,2]
[384998441,1757641851615,-300.0,0.00020135,2]
[384998443,1757641851624,-300.0,0.00020135,2]
[384998445,1757641851633,-300.0,0.00020135,2]
[384998447,1757641851642,-300.0,0.00020135,2]
[384998449,1757641851651,-599.038637,0.00020187,2]
[384998451,1757641851660,-501.15673141,0.00020273,2]
[384998453,1757641851669,-236.854346,0.00020284,2]
[384998455,1757641851678,-10277.0723519,0.00020299,2]
[384998457,1757641851687,-2000.0,0.00020416,2]
[384998459,1757641851696,-151.0,0.000205,4]
[384998461,1757641851705,-208.0,0.0002051,2]
[384998463,1757641851714,-1060.0,0.0002051,2]
[384998464,1757641851723,-552.725336,0.00020548,2]
[384998466,1757641851733,-1152.0,0.00020651,2]
[384998469,1757641851742,-5000.0,0.00020655,2]
[384998470,1757641851752,-10277.0723519,0.00020699,2]
[384998472,1757641851761,-3000.0,0.00020712,2]
[384998474,1757641851770,-160.0,0.0002082,5]
[384998476,1757641851780,-251.97120028,0.000209,2]
[384998478,1757641851789,-1569.25985925,0.00020964,2]
[384998480,1757641851797,-272.34871225,0.00021,2]
[384998482,1757641851807,-203.73533545,0.00021,2]
[384998484,1757641851816,-208.0,0.0002101,2]
[384998486,1757641851826,-966.27103404,0.00021058,2]
[384998488,1757641851835,-976.0,0.00021078,2]
[384998490,1757641851844,-2155.0,0.00021078,2]
[384998492,1757641851853,-634.0,0.00021078,2]
[384998494,1757641851861,-409.0,0.00021078,2]
[384998496,1757641851871,-10277.0723519,0.00021098,2]
[384998498,1757641851880,-151.0,0.000213,4]
[384998500,1757641851894,-1000.0,0.0002144,20]
[384998502,1757641851904,-244.0,0.0002144,20]
[384998504,1757641851913,-10277.0723519,0.00021498,2]
[384998506,1757641851922,-12287.9057845,0.000215,2]
[384998508,1757641851932,-12627.17183874,0.000215,2]
[384998510,1757641851940,-208.0,0.0002151,2]
[384998512,1757641851949,-1305.0,0.000216,2]
[384998514,1757641851959,-1305.0,0.000216,2]
[384998516,1757641851969,-1305.0,0.000216,2]
[384998518,1757641851978,-328.0,0.000216,2]
[384998520,1757641851987,-328.0,0.000216,2]
[384998522,1757641851996,-166.0,0.000216,2]
[384998524,1757641852005,-328.0,0.000216,2]
[384998526,1757641852014,-166.0,0.000216,2]
[384998528,1757641852023,-172.0,0.000216,2]
[384998530,1757641852032,-166.0,0.000216,2]
[384998532,1757641852041,-166.0,0.000216,2]
[384998534,1757641852051,-166.0,0.000216,2]
[384998536,1757641852060,-166.0,0.000216,2]
[384998538,1757641852069,-1305.0,0.000216,2]
[384998540,1757641852077,-1305.0,0.000216,2]
[384998542,1757641852087,-1305.0,0.000216,2]
[384998544,1757641852096,-1305.0,0.000216,2]
[384998546,1757641852107,-1305.0,0.000216,2]
[384998548,1757641852115,-1305.0,0.000216,2]
[384998550,1757641852124,-1305.0,0.000216,2]
[384998552,1757641852135,-1305.0,0.000216,2]
[384998554,1757641852144,-369.61472092,0.000216,2]
[384998556,1757641852153,-1305.0,0.000216,2]
[384998557,1757641852162,-328.0,0.000216,2]
[384998559,1757641852171,-1305.0,0.000216,2]
[384998561,1757641852180,-328.0,0.000216,2]
[384998563,1757641852189,-1305.0,0.000216,2]
[384998565,1757641852198,-166.0,0.000216,2]
[384998566,1757641852207,-1305.0,0.000216,2]
[384998568,1757641852217,-220.0,0.000216,2]
[384998570,1757641852226,-228.8999,0.000216,2]
[384998572,1757641852234,-160.0,0.0002161,6]
[384998574,1757641852243,-248.15666478,0.0002161,5]
[384998576,1757641852252,-470.1583007,0.00021723,2]
[384998578,1757641852262,-3000.0,0.00021808,2]
[384998580,1757641852271,-10277.0723519,0.00021897,2]
[384998581,1757641852280,-744.75,0.00021917,2]
[384998583,1757641852289,-744.75,0.00021917,2]
[384998585,1757641852298,-744.75,0.00021917,2]
[384998587,1757641852307,-744.75,0.00021917,2]
[384998589,1757641852316,-744.75,0.00021917,2]
[384998591,1757641852325,-744.75,0.00021917,2]
[384998593,1757641852334,-744.75,0.00021917,2]
[384998595,1757641852343,-744.75,0.00021917,2]
[384998597,1757641852352,-744.75,0.00021917,2]
[384998599,1757641852361,-744.75,0.00021917,2]
[384998601,1757641852370,-744.75,0.00021917,2]
[384998603,1757641852379,-744.75,0.00021917,2]
[384998604,1757641852388,-744.75,0.00021917,2]
[384998606,1757641852397,-744.75,0.00021917,2]
[384998608,1757641852407,-744.75,0.00021917,2]
[384998610,1757641852416,-744.75,0.00021917,2]
[384998612,1757641852425,-744.75,0.00021917,2]
[384998614,1757641852434,-744.75,0.00021917,2]
[384998616,1757641852443,-744.75,0.00021917,2]
[384998618,1757641852452,-744.75,0.00021917,2]
[384998620,1757641852461,-744.75,0.00021917,2]
[384998622,1757641852470,-744.75,0.00021917,2]
[384998624,1757641852479,-744.75,0.00021917,2]
[384998626,1757641852487,-744.97679079,0.00021917,2]
[384998628,1757641852496,-227.044988,0.00021918,2]
[384998630,1757641852505,-151.0,0.00021918,2]
[384998631,1757641852514,-151.0,0.00021918,2]
[384998633,1757641852523,-939.34354983,0.00022,2]
[384998635,1757641852532,-3585.43,0.00022,7]
[384998637,1757641852541,-1757.19,0.00022,7]
[384998639,1757641852550,-10677.31,0.00022,7]
[384998641,1757641852559,-10583.28703691,0.00022,7]
[384998643,1757641852569,-355.54824171,0.00022,2]
[384998645,1757641852578,-168.37307981,0.00022,10]
[384998647,1757641852587,-555.1381787,0.00022,7]
[384998649,1757641852596,-2597.32,0.00022,2]
[384998651,1757641852605,-24623.25821856,0.00022,7]
[384998653,1757641852618,-1218.21925989,0.00022,7]
[384998664,1757641852708,187.25363706,0.00013811,2]
[384998670,1757641852763,-153.0,0.00016849,2]
[384998672,1757641852772,-1881.169511,0.00022,7]
[384998674,1757641852783,-1500.47152399,0.00022,7]
[384998678,1757641852808,-422.748628,0.00022,7]
[384998776,1757641853731,187.25363706,0.00013673,2]
[384998780,1757641853760,480.0,0.0001381,2]
[384998784,1757641853789,480.0,0.00014108,2]
[384998850,1757641854489,598.56847254,0.00013811,2]
[384998908,1757641855038,480.0,0.00013811,2]
[384998960,1757641855498,508.64357941,0.00014085,2]
[384999011,1757641855960,480.0,0.00014108,2]
[384999201,1757641857777,480.0,0.0001381,2]
[384999284,1757641858770,607.08,0.00014108,2]
[384999395,1757641859829,139.01913247,0.0001381,2]
[384999398,1757641859852,340.98086753,0.0001381,2]
[384999559,1757641861707,480.0,0.0001381,2]
[384999800,1757641864126,480.0,0.00014108,2]
[385000108,1757641866974,483.46713428,0.00013811,2]
[385000216,1757641867998,486.09353585,0.00014108,2]
[385000485,1757641870960,480.0,0.0001381,2]
[385000513,1757641871222,482.13536719,0.00013811,2]
[385000517,1757641871251,480.0,0.00014084,2]
[385000764,1757641873647,480.0,0.00014214,2]
[385001166,1757641877814,480.0,0.0001381,2]
[385001396,1757641880131,492.25438484,0.00013811,2]
[385001588,1757641881918,480.0,0.00013811,2]
[385001614,1757641882152,1000.0,0.00027397,120]
[385001622,1757641882218,349.18877625,0.00014085,2]
[385001668,1757641882638,985.02,0.00014108,2]
[385001791,1757641883814,482.13184815,0.00013811,2]
[385001866,1757641884568,480.0,0.00014108,2]
[385002168,1757641887753,496.4299627,0.00013811,2]
[385002311,1757641889098,480.0,0.0001381,2]
[385002339,1757641889339,480.0,0.00014084,2]
[385002411,1757641890038,486.44946649,0.00013811,2]
[385002545,1757641891540,115.85865672,0.00013811,2]
[385002546,1757641891562,364.14134328,0.00013811,2]
[385002634,1757641893598,480.0,0.00014108,2]
[385002638,1757641893626,173.44804313,0.00013809,2]
[385002740,1757641894687,480.0,0.0001381,2]
[385002823,1757641895540,572.0273303,0.00013811,2]
[385002888,1757641896317,480.0,0.00013672,2]
[385002974,1757641897471,480.0,0.00013811,2]
[385003079,1757641898959,480.0,0.0001381,2]
[385003083,1757641899295,482.02843853,0.00013811,2]
[385003263,1757641901149,480.0,0.00013811,2]
[385003293,1757641901410,480.0,0.00014085,2]
[385003405,1757641902733,161.084967,0.00024,30]
[385003428,1757641902944,480.0,0.00014108,2]
[385003730,1757641906152,480.0,0.00014108,2]
[385003949,1757641908209,480.0,0.00014108,2]
[385004023,1757641908898,480.0,0.0001381,2]
[385004185,1757641910586,480.0,0.00013809,2]
[385004219,1757641910905,257.8856564,0.00014083,2]
[385004822,1757641917018,1000.0,0.00027397,120]
[385005119,1757641919934,960.0,0.00014214,2]
[385005154,1757641920270,485.20184728,0.00013809,2]
[385005257,1757641921519,480.0,0.00013809,2]
[385005285,1757641921764,285.59743331,0.00014083,2]
[385005609,1757641924950,179.67990777,0.0001381,2]
[385005613,1757641924977,300.32009223,0.0001381,2]
[385005637,1757641925204,480.0,0.00014084,2]
[385005733,1757641926130,480.0,0.00013809,2]
[385006246,1757641943042,1440.0,0.00014214,2]
[385006247,1757641943287,480.0,0.00013809,2]
[385006248,1757641944650,480.0,0.0001381,2]
[385006249,1757641944930,480.0,0.00014084,2]
[385006257,1757641947057,653.22663643,0.00027397,120]
[385006258,1757641948615,480.0,0.0001381,2]
[385006259,1757641948757,480.0,0.0001381,2]
[385006260,1757641949055,480.0,0.00014084,2]
[385006261,1757641956832,482.18556571,0.00013809,2]
[385006265,1757641966008,1920.0,0.00014214,2]
[385006273,1757641968665,480.0,0.00013809,2]
[385006275,1757641971215,480.0,0.0001381,2]
[385006277,1757641973275,480.0,0.0001381,2]
[385006278,1757641976969,480.0,0.00014108,2]
[385006282,1757641979442,97.50434206,0.0001381,2]
[385006283,1757641979464,382.49565794,0.0001381,2]
[385006284,1757641979674,480.0,0.00014084,2]
[385006289,1757641990296,1920.0,0.00014214,2]
[385006290,1757641993493,526.20638479,0.00013811,2]
[385006294,1757641998460,480.0,0.00014108,2]
[385006297,1757642002740,480.0,0.0001381,2]
[385006298,1757642002895,468.1,0.00014084,2]
[385006299,1757642007019,484.26422729,0.00013809,2]
[385006300,1757642009721,480.0,0.00014108,2]
[385006303,1757642010299,480.0,0.0001381,2]
[385006304,1757642010466,480.0,0.00013809,2]
[385006305,1757642010583,480.0,0.00014084,2]
[385006306,1757642010886,480.0,0.00014108,2]
[385006307,1757642012829,480.0,0.0001381,2]
[385006308,1757642012957,480.0,0.00014108,2]
[385006309,1757642013036,480.0,0.00014084,2]
[385006310,1757642013897,480.0,0.00014108,2]
[385006311,1757642014132,458.94372998,0.00014214,2]
[385006312,1757642014156,1941.05627002,0.00014214,2]
[385006313,1757642016643,480.0,0.0001381,2]
[385006316,1757642018765,484.36670395,0.00013811,2]
[385006317,1757642022953,480.0,0.00013809,2]
[385006318,1757642023293,480.0,0.0001381,2]
[385006319,1757642023529,487.92170566,0.00014084,2]
[385006320,1757642025554,480.0,0.0001381,2]
[385006322,1757642025800,513.33,0.00014084,2]
[385006323,1757642027890,465.00632436,0.00013809,2]
[385006324,1757642030059,480.0,0.00013811,2]
[385006325,1757642030324,495.4020943,0.00014085,2]
[385006328,1757642036751,2400.0,0.00014214,2]
[385006329,1757642038073,480.0,0.00014108,2]
[385006330,1757642038650,332.92690171,0.00014108,2]
[385006331,1757642038672,147.07309829,0.00014108,2]
[385006332,1757642039306,482.75575361,0.00013811,2]
[385006334,1757642042363,480.0,0.00014108,2]
[385006335,1757642048558,480.0,0.00013811,2]
[385006336,1757642048590,480.0,0.0001381,2]
[385006337,1757642048806,480.0,0.00014085,2]
[385006338,1757642048850,480.0,0.00014084,2]
[385006340,1757642053066,480.0,0.00013809,2]
[385006341,1757642053527,492.31335443,0.00014083,2]
[385006344,1757642058199,480.0,0.00014108,2]
[385006345,1757642060346,480.0,0.00014108,2]
[385006346,1757642061005,480.0,0.00013811,2]
[385006347,1757642061062,300.0,0.00014213,2]
[385006348,1757642061289,480.0,0.00014085,2]
[385006349,1757642063080,481.91308891,0.00013811,2]
[385006352,1757642065793,183.18461536,0.00013811,2]
[385006353,1757642067704,480.0,0.00013809,2]
[385006354,1757642067733,480.0,0.00013811,2]
[385006355,1757642067954,489.75669345,0.00014083,2]
[385006358,1757642072951,480.0,0.0001381,2]
[385006359,1757642073216,480.0,0.00014084,2]
[385006360,1757642074805,480.0,0.00014108,2]
[385006362,1757642079980,223.01339595,0.00014108,2]
[385006364,1757642087751,1440.0,0.00013673,2]
[385006369,1757642112864,960.0,0.00013671,2]
[385006373,1757642137496,1742.09583874,0.00013671,2]
[385006379,1757642162858,2435.48586901,0.00013671,2]
[385006380,1757642162883,2529.20303229,0.00013671,2]
[385006386,1757642187824,300.0,0.0001367,2]
[385006391,1757642212236,300.0,0.0001367,2]
[385006397,1757642236652,169.34158476,0.0001367,2]
[385006418,1757642437265,166.66666668,0.00013708,2]
[385006419,1757642442838,666.0,0.00013026,2]
[385006422,1757642493958,574.61226,0.00013699,2]
[385006425,1757642502234,161.084968,0.00024,30]
[385006432,1757642556058,892.6,0.00012329,2]
[385006436,1757642697923,961.53570317,0.0001371,2]
[385006492,1757642915508,173.03155834,0.00013395,2]
[385006496,1757642980445,841.3437403,0.00013709,2]
[385006523,1757643032213,-300.0,0.00013807,2]
[385006525,1757643032223,-200.0,0.00013807,2]
[385006530,1757643032270,-1000.0,0.00013807,2]
[385006532,1757643032279,-480.0,0.00013808,2]
[385006534,1757643032290,-480.0,0.00013808,2]
[385006536,1757643032300,-480.0,0.00013808,2]
[385006538,1757643032309,-749.9,0.00013808,2]
[385006540,1757643032320,-480.0,0.00013808,2]
[385006541,1757643032331,-302.09583874,0.00013809,2]
[385006543,1757643032341,-480.0,0.00013809,2]
[385006545,1757643032351,-484.97776006,0.00013809,2]
[385006547,1757643032360,-480.0,0.00013809,2]
[385006549,1757643032369,-313.15434882,0.00013809,2]
[385006551,1757643032378,-500.0,0.00013809,2]
[385006552,1757643032388,-480.0,0.00013809,2]
[385006553,1757643032396,-480.0,0.00013809,2]
[385006554,1757643032405,-484.46095368,0.00013809,2]
[385006555,1757643032415,-484.61797413,0.00013809,2]
[385006556,1757643032424,-480.0,0.00013809,2]
[385006557,1757643032434,-569.01380312,0.00013809,2]
[385006558,1757643032443,-484.95016034,0.00013809,2]
[385006559,1757643032452,-480.0,0.00013809,2]
[385006560,1757643032462,-480.0,0.00013809,2]
[385006561,1757643032471,-487.67661851,0.00013809,2]
[385006562,1757643032480,-484.0476538,0.00013809,2]
[385006563,1757643032490,-480.0,0.00013809,2]
[385006564,1757643032499,-480.0,0.00013809,2]
[385006565,1757643032508,-155.6340228,0.00013809,2]
[385006568,1757643038172,-330.10111188,0.00013809,2]
[385006569,1757643038181,-482.79237624,0.00013809,2]
[385006570,1757643038191,-480.0,0.00013809,2]
[385006571,1757643038200,-480.0,0.00013809,2]
[385006573,1757643038209,-480.0,0.00013809,2]
[385006574,1757643038218,-480.0,0.00013809,2]
[385006575,1757643038227,-480.0,0.00013809,2]
[385006576,1757643038237,-480.0,0.00013809,2]
[385006577,1757643038250,-396.11649269,0.00013809,2]
[385006578,1757643038259,-482.9284026,0.00013809,2]
[385006579,1757643038268,-481.60104119,0.00013809,2]
[385006580,1757643038277,-480.0,0.00013809,2]
[385006581,1757643038287,-468.89903458,0.00013809,2]
[385006582,1757643038297,-480.0,0.00013809,2]
[385006583,1757643038306,-484.74069667,0.00013809,2]
[385006584,1757643038316,-480.0,0.00013809,2]
[385006585,1757643038325,-159.41925624,0.00013809,2]
[385006586,1757643038335,-1815.78,0.00013809,2]
[385006587,1757643038344,-480.0,0.00013809,2]
[385006588,1757643038354,-480.0,0.00013809,2]
[385006589,1757643038363,-848.55,0.00013809,2]
[385006590,1757643038372,-480.0,0.00013809,2]
[385006591,1757643038381,-1074.47,0.00013809,2]
[385006592,1757643038391,-1533.86,0.00013809,2]
[385006593,1757643038400,-480.0,0.00013809,2]
[385006594,1757643038409,-480.0,0.00013809,2]
[385006595,1757643038419,-480.0,0.00013809,2]
[385006596,1757643038428,-757.98,0.00013809,2]
[385006597,1757643038437,-480.0,0.00013809,2]
[385006598,1757643038447,-480.0,0.00013809,2]
[385006599,1757643038456,-480.0,0.00013809,2]
[385006600,1757643038465,-480.0,0.00013809,2]
[385006601,1757643038474,-480.0,0.00013809,2]
[385006602,1757643038483,-497.01020828,0.00013809,2]
[385006603,1757643038492,-480.0,0.00013809,2]
[385006604,1757643038502,-480.0,0.00013809,2]
[385006605,1757643038512,-480.0,0.00013809,2]
[385006606,1757643038522,-480.0,0.00013809,2]
[385006607,1757643038531,-500.0,0.0001381,2]
[385006608,1757643038540,-573.89830524,0.0001381,2]
[385006609,1757643038550,-480.0,0.0001381,2]
[385006610,1757643038560,-398.96445233,0.0001381,2]
[385006611,1757643038569,-480.0,0.0001381,2]
[385006612,1757643038579,-480.0,0.0001381,2]
[385006613,1757643038590,-480.0,0.0001381,2]
[385006614,1757643038599,-480.0,0.0001381,2]
[385006615,1757643038610,-480.0,0.0001381,2]
[385006616,1757643038619,-480.0,0.0001381,2]
[385006617,1757643038630,-480.0,0.0001381,2]
[385006618,1757643038640,-480.0,0.0001381,2]
[385006619,1757643038648,-480.0,0.0001381,2]
[385006620,1757643038657,-480.0,0.0001381,2]
[385006621,1757643038667,-480.0,0.0001381,2]
[385006622,1757643038676,-480.0,0.0001381,2]
[385006623,1757643038685,-480.0,0.0001381,2]
[385006624,1757643038694,-300.0,0.0001381,2]
[385006625,1757643038703,-480.0,0.0001381,2]
[385006626,1757643038712,-480.0,0.0001381,2]
[385006627,1757643038721,-480.0,0.0001381,2]
[385006628,1757643038730,-480.0,0.0001381,2]
[385006629,1757643038739,-480.0,0.0001381,2]
[385006630,1757643038749,-480.0,0.0001381,2]
[385006631,1757643038758,-480.0,0.0001381,2]
[385006632,1757643038768,-490.20662658,0.0001381,2]
[385006633,1757643038776,-480.0,0.0001381,2]
[385006634,1757643038785,-480.0,0.0001381,2]
[385006635,1757643038795,-480.0,0.0001381,2]
[385006636,1757643038804,-480.0,0.0001381,2]
[385006637,1757643038813,-480.0,0.0001381,2]
[385006638,1757643038822,-480.0,0.0001381,2]
[385006639,1757643038832,-480.0,0.0001381,2]
[385006640,1757643038841,-480.0,0.0001381,2]
[385006641,1757643038850,-480.0,0.0001381,2]
[385006642,1757643038859,-480.0,0.0001381,2]
[385006643,1757643038874,-871.22,0.0001381,2]
[385006644,1757643038883,-480.0,0.0001381,2]
[385006645,1757643038893,-480.0,0.0001381,2]
[385006646,1757643038903,-480.0,0.0001381,2]
[385006647,1757643038913,-480.0,0.0001381,2]
[385006648,1757643038922,-480.0,0.0001381,2]
[385006649,1757643038931,-480.0,0.0001381,2]
[385006650,1757643038940,-480.0,0.0001381,2]
[385006651,1757643038950,-480.0,0.0001381,2]
[385006652,1757643038959,-2536.79,0.0001381,2]
[385006653,1757643038968,-166.66666666,0.00013858,2]
[385006654,1757643038978,-166.66666666,0.00014008,2]
[385006655,1757643038987,-480.0,0.00014082,2]
[385006656,1757643038997,-480.0,0.00014082,2]
[385006657,1757643039007,-480.0,0.00014082,2]
[385006658,1757643039016,-749.9,0.00014082,2]
[385006659,1757643039025,-480.0,0.00014082,2]
[385006660,1757643039034,-488.51382705,0.00014083,2]
[385006661,1757643039044,-480.0,0.00014083,2]
[385006662,1757643039053,-480.0,0.00014083,2]
[385006663,1757643039061,-480.0,0.00014083,2]
[385006664,1757643039071,-480.0,0.00014083,2]
[385006665,1757643039080,-480.0,0.00014083,2]
[385006666,1757643039089,-1815.78,0.00014083,2]
[385006667,1757643039098,-480.0,0.00014083,2]
[385006668,1757643039107,-480.0,0.00014083,2]
[385006669,1757643039116,-848.55,0.00014083,2]
[385006670,1757643039125,-480.0,0.00014083,2]
[385006671,1757643039134,-1074.47,0.00014083,2]
[385006672,1757643039144,-1533.86,0.00014083,2]
[385006673,1757643039154,-480.0,0.00014083,2]
[385006674,1757643039163,-470.0,0.00014083,2]
[385006675,1757643039172,-480.0,0.00014083,2]
[385006676,1757643039182,-757.98,0.00014083,2]
[385006677,1757643039192,-480.0,0.00014083,2]
[385006678,1757643039201,-480.0,0.00014083,2]
[385006679,1757643039210,-480.0,0.00014083,2]
[385006680,1757643039220,-480.0,0.00014083,2]
[385006681,1757643039230,-480.0,0.00014083,2]
[385006682,1757643039240,-480.0,0.00014083,2]
[385006683,1757643039253,-480.0,0.00014083,2]
[385006684,1757643039265,-267.58241398,0.00014083,2]
[385006685,1757643039275,-480.0,0.00014083,2]
[385006686,1757643039286,-480.0,0.00014084,2]
[385006687,1757643039298,-480.0,0.00014084,2]
[385006688,1757643039310,-480.0,0.00014084,2]
[385006689,1757643039320,-363.70947972,0.00014084,2]
[385006690,1757643039331,-351.40458839,0.00014084,2]
[385006691,1757643039340,-480.0,0.00014084,2]
[385006692,1757643039350,-480.0,0.00014084,2]
[385006693,1757643039359,-480.0,0.00014084,2]
[385006694,1757643039370,-480.0,0.00014084,2]
[385006695,1757643039379,-488.19160927,0.00014084,2]
[385006696,1757643039388,-604.7697605,0.00014084,2]
[385006697,1757643039397,-480.0,0.00014084,2]
[385006698,1757643039406,-480.0,0.00014084,2]
[385006699,1757643039415,-502.3723421,0.00014084,2]
[385006700,1757643039424,-546.95695443,0.00014084,2]
[385006701,1757643039434,-480.0,0.00014084,2]
[385006702,1757643039443,-480.0,0.00014084,2]
[385006703,1757643039453,-490.24044286,0.00014084,2]
[385006704,1757643039462,-480.0,0.00014084,2]
[385006705,1757643039471,-480.0,0.00014084,2]
[385006706,1757643039480,-480.0,0.00014084,2]
[385006707,1757643039489,-480.0,0.00014084,2]
[385006708,1757643039498,-480.0,0.00014084,2]
[385006709,1757643039507,-480.0,0.00014084,2]
[385006710,1757643039517,-480.0,0.00014084,2]
[385006711,1757643039526,-480.0,0.00014084,2]
[385006712,1757643039535,-488.7307436,0.00014084,2]
[385006713,1757643039545,-480.0,0.00014084,2]
[385006714,1757643039555,-871.22,0.00014084,2]
[385006715,1757643039564,-480.0,0.00014084,2]
[385006716,1757643039573,-480.0,0.00014084,2]
[385006717,1757643039583,-480.0,0.00014084,2]